[Event "Late-Titled-Tuesday-Blitz-November-28-2023"]
[Site "Chess.com"]
[Date "2023.11.28"]
[Round "1"]
[White "temiksmozg"]
[Black "HanSchut"]
[Result "1/2-1/2"]
[WhiteElo "2590"]
[BlackElo "2281"]
[TimeControl "180+1"]
[EndTime "14:09:10 PST"]
[Termination "Game drawn by repetition"]

1. e4 {[%clk 0:03:00.9]} 1... c5 {[%clk 0:02:59.4]} 2. Nf3 {[%clk 0:03:00.4]}
2... d6 {[%clk 0:03:00]} 3. Bb5+ {[%clk 0:03:00.6]} 3... Bd7 {[%clk 0:03:00.7]}
4. Bxd7+ {[%clk 0:02:58.8]} 4... Qxd7 {[%clk 0:03:01.6]} 5. O-O {[%clk
0:02:57.9]} 5... Nf6 {[%clk 0:03:00.1]} 6. Re1 {[%clk 0:02:58.2]} 6... Nc6
{[%clk 0:03:00.5]} 7. c3 {[%clk 0:02:58.7]} 7... e6 {[%clk 0:03:00.8]} 8. d4
{[%clk 0:02:59.1]} 8... cxd4 {[%clk 0:03:01.5]} 9. cxd4 {[%clk 0:03:00]} 9... d5
{[%clk 0:03:02.1]} 10. e5 {[%clk 0:03:00]} 10... Ne4 {[%clk 0:03:02.5]} 11. Nbd2
{[%clk 0:02:57.2]} 11... Nxd2 {[%clk 0:03:02.3]} 12. Bxd2 {[%clk 0:02:58.1]}
12... Be7 {[%clk 0:03:02.4]} 13. Rc1 {[%clk 0:02:57.2]} 13... O-O {[%clk
0:03:02.2]} 14. Qa4 {[%clk 0:02:52.1]} 14... Nxe5 {[%clk 0:02:45.6]} 15. Qxd7
{[%clk 0:02:49.7]} 15... Nxd7 {[%clk 0:02:46.5]} 16. Rc7 {[%clk 0:02:49.7]}
16... Rfd8 {[%clk 0:02:43.3]} 17. Rxb7 {[%clk 0:02:45.9]} 17... Bf6 {[%clk
0:02:39.3]} 18. Rc1 {[%clk 0:02:33.2]} 18... Nb6 {[%clk 0:02:39.1]} 19. Rcc7
{[%clk 0:02:30.4]} 19... Nc4 {[%clk 0:02:31.1]} 20. Bc3 {[%clk 0:01:57]} 20...
a5 {[%clk 0:02:22.9]} 21. a4 {[%clk 0:01:52.3]} 21... Nd6 {[%clk 0:01:53.4]} 22.
Rb6 {[%clk 0:01:52.1]} 22... Ne4 {[%clk 0:01:46.8]} 23. Rb5 {[%clk 0:01:50.8]}
23... Nxc3 {[%clk 0:01:38.7]} 24. bxc3 {[%clk 0:01:51.7]} 24... Rdb8 {[%clk
0:01:39.1]} 25. Rxb8+ {[%clk 0:01:42.6]} 25... Rxb8 {[%clk 0:01:40]} 26. g4
{[%clk 0:01:43]} 26... h6 {[%clk 0:01:39.6]} 27. h4 {[%clk 0:01:42.3]} 27... g5
{[%clk 0:01:36]} 28. hxg5 {[%clk 0:01:38.1]} 28... hxg5 {[%clk 0:01:36.9]} 29.
Rc5 {[%clk 0:01:16.9]} 29... Rb3 {[%clk 0:01:33.1]} 30. Kf1 {[%clk 0:01:00.9]}
30... Ra3 {[%clk 0:01:33]} 31. Rxa5 {[%clk 0:01:00.6]} 31... Rxc3 {[%clk
0:01:33.2]} 32. Ke2 {[%clk 0:01:01.1]} 32... Ra3 {[%clk 0:01:29.6]} 33. Ra7
{[%clk 0:00:55.2]} 33... Kg7 {[%clk 0:01:26.1]} 34. a5 {[%clk 0:00:52.9]} 34...
Ra2+ {[%clk 0:01:25.2]} 35. Ke3 {[%clk 0:00:47.3]} 35... Ra3+ {[%clk 0:01:25.5]}
36. Ke2 {[%clk 0:00:48]} 36... Ra2+ {[%clk 0:01:25.3]} 37. Kf1 {[%clk
0:00:48.7]} 37... Ra4 {[%clk 0:01:22.8]} 38. a6 {[%clk 0:00:28.7]} 38... Bxd4
{[%clk 0:01:22.6]} 39. Rb7 {[%clk 0:00:28.8]} 39... Bf6 {[%clk 0:01:19.9]} 40.
a7 {[%clk 0:00:29.1]} 40... Ra2 {[%clk 0:01:18.7]} 41. Ke1 {[%clk 0:00:23.8]}
41... e5 {[%clk 0:01:16.4]} 42. Nd2 {[%clk 0:00:21.7]} 42... e4 {[%clk
0:01:08.7]} 43. Nb3 {[%clk 0:00:21.7]} 43... d4 {[%clk 0:01:03.9]} 44. Nc5
{[%clk 0:00:20.4]} 44... e3 {[%clk 0:00:55.1]} 45. fxe3 {[%clk 0:00:18.1]} 45...
dxe3 {[%clk 0:00:56]} 46. Ne4 {[%clk 0:00:07.7]} 46... Bd4 {[%clk 0:00:47.3]}
47. Rd7 {[%clk 0:00:08.2]} 47... Bb6 {[%clk 0:00:28.8]} 48. a8=Q {[%clk
0:00:07.7]} 48... Rxa8 {[%clk 0:00:27]} 49. Nxg5 {[%clk 0:00:08.2]} 49... Ra4
{[%clk 0:00:19.6]} 50. Nxf7 {[%clk 0:00:04.3]} 50... Ra7 {[%clk 0:00:14.7]} 51.
Ne5+ {[%clk 0:00:02.5]} 51... Kf6 {[%clk 0:00:13.3]} 52. Rxa7 {[%clk 0:00:02]}
52... Bxa7 {[%clk 0:00:13.6]} 53. Nf3 {[%clk 0:00:02.6]} 53... Bb6 {[%clk
0:00:12.2]} 54. Ke2 {[%clk 0:00:03.5]} 54... Kg6 {[%clk 0:00:12]} 55. Kd3 {[%clk
0:00:04.4]} 55... Kf6 {[%clk 0:00:12.1]} 56. Ke2 {[%clk 0:00:04.1]} 56... Kg6
{[%clk 0:00:10.2]} 57. Ng1 {[%clk 0:00:03.6]} 57... Kg5 {[%clk 0:00:10.4]} 58.
Kf3 {[%clk 0:00:04.5]} 58... Bc5 {[%clk 0:00:10]} 59. Ne2 {[%clk 0:00:05.4]}
59... Bb6 {[%clk 0:00:10.4]} 60. Ng3 {[%clk 0:00:05.5]} 60... Ba7 {[%clk
0:00:09.9]} 61. Ne4+ {[%clk 0:00:05.6]} 61... Kg6 {[%clk 0:00:10.6]} 62. Nd6
{[%clk 0:00:05.6]} 62... Bc5 {[%clk 0:00:05.8]} 63. Nc4 {[%clk 0:00:05.2]} 63...
Ba7 {[%clk 0:00:06.1]} 64. Ne5+ {[%clk 0:00:04.4]} 64... Kg5 {[%clk 0:00:05.2]}
65. Nf7+ {[%clk 0:00:04.6]} 65... Kg6 {[%clk 0:00:05.6]} 66. Nd6 {[%clk
0:00:05.1]} 66... Kg5 {[%clk 0:00:05.1]} 67. Ne4+ {[%clk 0:00:05.6]} 67... Kg6
{[%clk 0:00:05]} 68. Ng3 {[%clk 0:00:04.4]} 68... Kg5 {[%clk 0:00:05.2]} 69. Ne2
{[%clk 0:00:05]} 69... Bb6 {[%clk 0:00:05.3]} 70. Nc3 {[%clk 0:00:05.3]} 70...
Ba7 {[%clk 0:00:05.8]} 71. Nd5 {[%clk 0:00:05.2]} 71... Bc5 {[%clk 0:00:05.5]}
72. Nf4 {[%clk 0:00:04.8]} 72... Kf6 {[%clk 0:00:05.4]} 73. Ke4 {[%clk
0:00:03.7]} 73... Bd6 {[%clk 0:00:04.1]} 74. Ne2 {[%clk 0:00:03.6]} 74... Kg5
{[%clk 0:00:04.5]} 75. Kf3 {[%clk 0:00:04]} 75... Bc5 {[%clk 0:00:05.2]} 76. Nc3
{[%clk 0:00:03.2]} 76... Ba7 {[%clk 0:00:05.1]} 77. Nd5 {[%clk 0:00:03.1]} 77...
Bc5 {[%clk 0:00:05.1]} 78. Nf4 {[%clk 0:00:03.4]} 78... Ba7 {[%clk 0:00:05.1]}
79. Ne6+ {[%clk 0:00:03.4]} 79... Kf6 {[%clk 0:00:05.2]} 80. Nc7 {[%clk
0:00:03.1]} 80... Kg5 {[%clk 0:00:05.1]} 81. Nd5 {[%clk 0:00:03]} 1/2-1/2

[Event "Late-Titled-Tuesday-Blitz-November-28-2023"]
[Site "Chess.com"]
[Date "2023.11.28"]
[Round "1"]
[White "katharinareinecke"]
[Black "annazero"]
[Result "0-1"]
[WhiteElo "1999"]
[BlackElo "2517"]
[TimeControl "180+1"]
[EndTime "14:09:20 PST"]
[Termination "annazero won by checkmate"]

1. d4 {[%clk 0:02:59.1]} 1... g6 {[%clk 0:03:00.6]} 2. c4 {[%clk 0:02:59.2]}
2... Bg7 {[%clk 0:03:01.5]} 3. Nf3 {[%clk 0:02:59.5]} 3... d6 {[%clk 0:03:02.4]}
4. g3 {[%clk 0:02:59.8]} 4... Nf6 {[%clk 0:03:03]} 5. Bg2 {[%clk 0:03:00]} 5...
O-O {[%clk 0:03:03.6]} 6. O-O {[%clk 0:03:00.1]} 6... c6 {[%clk 0:03:01.6]} 7.
Nc3 {[%clk 0:03:00.1]} 7... Bf5 {[%clk 0:03:01.4]} 8. Nh4 {[%clk 0:02:57.8]}
8... Be6 {[%clk 0:03:00.9]} 9. b3 {[%clk 0:02:51.4]} 9... d5 {[%clk 0:03:00.3]}
10. cxd5 {[%clk 0:02:50]} 10... cxd5 {[%clk 0:03:01.2]} 11. Ba3 {[%clk
0:02:41.4]} 11... Nc6 {[%clk 0:03:00]} 12. e3 {[%clk 0:02:39.3]} 12... Rc8
{[%clk 0:02:55.6]} 13. Rc1 {[%clk 0:02:38.6]} 13... a5 {[%clk 0:02:38.3]} 14. f4
{[%clk 0:02:36.6]} 14... Nb4 {[%clk 0:02:36.7]} 15. Qd2 {[%clk 0:02:31.2]} 15...
Qb6 {[%clk 0:01:58.2]} 16. f5 {[%clk 0:02:24.8]} 16... Bd7 {[%clk 0:01:51.6]}
17. fxg6 {[%clk 0:02:19.9]} 17... hxg6 {[%clk 0:01:51.6]} 18. Nf3 {[%clk
0:02:18.5]} 18... Bf5 {[%clk 0:01:43.3]} 19. Ne5 {[%clk 0:02:16.5]} 19... Ne4
{[%clk 0:01:42]} 20. Nxe4 {[%clk 0:02:11.8]} 20... Bxe4 {[%clk 0:01:41.2]} 21.
Nd7 {[%clk 0:02:05.2]} 21... Qb5 {[%clk 0:01:35.9]} 22. Nxf8 {[%clk 0:02:01.3]}
22... Rxf8 {[%clk 0:01:36.8]} 23. Bxb4 {[%clk 0:01:54.1]} 23... axb4 {[%clk
0:01:36.1]} 24. Rc5 {[%clk 0:01:49.2]} 24... Qa6 {[%clk 0:01:33.3]} 25. Bxe4
{[%clk 0:01:42.9]} 25... dxe4 {[%clk 0:01:32.9]} 26. Rfc1 {[%clk 0:01:42.2]}
26... b6 {[%clk 0:01:29.2]} 27. Rc7 {[%clk 0:01:40.9]} 27... e5 {[%clk 0:01:26]}
28. d5 {[%clk 0:01:39.7]} 28... Rd8 {[%clk 0:01:13]} 29. d6 {[%clk 0:01:38]}
29... b5 {[%clk 0:01:11.6]} 30. R7c6 {[%clk 0:01:33.5]} 30... Qa7 {[%clk
0:01:11]} 31. R1c2 {[%clk 0:01:28.5]} 31... Bh6 {[%clk 0:01:10.2]} 32. Kf2
{[%clk 0:01:18.6]} 32... Kh7 {[%clk 0:01:08.1]} 33. Rc7 {[%clk 0:01:08.8]} 33...
Qb6 {[%clk 0:01:07.6]} 34. d7 {[%clk 0:01:05.3]} 34... Qf6+ {[%clk 0:01:01.1]}
35. Ke1 {[%clk 0:01:01.3]} 35... Qf3 {[%clk 0:01:00.1]} 36. Qe2 {[%clk
0:00:50.4]} 36... Qf5 {[%clk 0:00:41.9]} 37. Rd2 {[%clk 0:00:46.5]} 37... Bg5
{[%clk 0:00:36.2]} 38. Qxb5 {[%clk 0:00:41.6]} 38... Bxe3 {[%clk 0:00:31.2]} 39.
Re2 {[%clk 0:00:28]} 39... Qf3 {[%clk 0:00:30.5]} 40. Rxe3 {[%clk 0:00:23]}
40... Qxe3+ {[%clk 0:00:30.5]} 41. Qe2 {[%clk 0:00:20.6]} 41... Qg1+ {[%clk
0:00:28.8]} 42. Kd2 {[%clk 0:00:20.4]} 42... Qd4+ {[%clk 0:00:28.4]} 43. Ke1
{[%clk 0:00:18.6]} 43... Rxd7 {[%clk 0:00:28.8]} 44. Rxd7 {[%clk 0:00:18.3]}
44... Qxd7 {[%clk 0:00:29.7]} 45. Qxe4 {[%clk 0:00:18.4]} 45... Qd6 {[%clk
0:00:29.9]} 46. Ke2 {[%clk 0:00:17.3]} 46... Kg7 {[%clk 0:00:30.3]} 47. Qe3
{[%clk 0:00:17.3]} 47... Qd5 {[%clk 0:00:29.4]} 48. h4 {[%clk 0:00:16.9]} 48...
e4 {[%clk 0:00:29.4]} 49. Kf2 {[%clk 0:00:16.8]} 49... Qe5 {[%clk 0:00:29.1]}
50. Kg2 {[%clk 0:00:17.1]} 50... Qb2+ {[%clk 0:00:28.9]} 51. Kh3 {[%clk
0:00:15.1]} 51... Qe5 {[%clk 0:00:29.4]} 52. g4 {[%clk 0:00:13]} 52... Qd5
{[%clk 0:00:29.1]} 53. Qf4 {[%clk 0:00:12.8]} 53... Qd3+ {[%clk 0:00:28.6]} 54.
Kh2 {[%clk 0:00:12.7]} 54... Qd4 {[%clk 0:00:29.1]} 55. g5 {[%clk 0:00:12.3]}
55... Qb2+ {[%clk 0:00:28.2]} 56. Kh3 {[%clk 0:00:11.7]} 56... Qc3+ {[%clk
0:00:28.8]} 57. Kg4 {[%clk 0:00:11.5]} 57... Qd4 {[%clk 0:00:28.8]} 58. Kh3
{[%clk 0:00:11.5]} 58... Qd3+ {[%clk 0:00:28.5]} 59. Kg4 {[%clk 0:00:11.2]}
59... Qe2+ {[%clk 0:00:28.5]} 60. Kh3 {[%clk 0:00:11.1]} 60... Qb2 {[%clk
0:00:25.7]} 61. Kg4 {[%clk 0:00:09.8]} 61... Qxa2 {[%clk 0:00:25.7]} 62. Qf6+
{[%clk 0:00:09.8]} 62... Kg8 {[%clk 0:00:25.8]} 63. Qd8+ {[%clk 0:00:09.6]}
63... Kh7 {[%clk 0:00:26.3]} 64. Qf6 {[%clk 0:00:07.8]} 64... Qg2+ {[%clk
0:00:26.3]} 65. Kf4 {[%clk 0:00:05.5]} 65... Qf3+ {[%clk 0:00:26.4]} 66. Ke5
{[%clk 0:00:05.4]} 66... Qxf6+ {[%clk 0:00:25.8]} 67. Kxf6 {[%clk 0:00:05.4]}
67... e3 {[%clk 0:00:26.3]} 68. Kxf7 {[%clk 0:00:05.9]} 68... e2 {[%clk
0:00:26]} 69. h5 {[%clk 0:00:06.5]} 69... gxh5 {[%clk 0:00:23.6]} 70. g6+ {[%clk
0:00:06.7]} 70... Kh6 {[%clk 0:00:23.5]} 71. g7 {[%clk 0:00:07.1]} 71... e1=Q
{[%clk 0:00:24.2]} 72. g8=Q {[%clk 0:00:07.4]} 72... Qf2+ {[%clk 0:00:23.7]} 73.
Ke8 {[%clk 0:00:07.1]} 73... Qe3+ {[%clk 0:00:22]} 74. Kd7 {[%clk 0:00:07.1]}
74... Qh3+ {[%clk 0:00:19.5]} 75. Kd6 {[%clk 0:00:06.6]} 75... Qd3+ {[%clk
0:00:18.4]} 76. Kc6 {[%clk 0:00:06.5]} 76... Qc3+ {[%clk 0:00:18.5]} 77. Kb5
{[%clk 0:00:05.9]} 77... Qe5+ {[%clk 0:00:17.3]} 78. Kb6 {[%clk 0:00:05.8]}
78... Qf6+ {[%clk 0:00:17.1]} 79. Kb5 {[%clk 0:00:04.4]} 79... Qg5+ {[%clk
0:00:17.7]} 80. Kxb4 {[%clk 0:00:03.9]} 80... Qxg8 {[%clk 0:00:16.7]} 81. Kc5
{[%clk 0:00:02.4]} 81... Qb8 {[%clk 0:00:17.6]} 82. b4 {[%clk 0:00:02.3]} 82...
h4 {[%clk 0:00:18.3]} 83. b5 {[%clk 0:00:02.9]} 83... h3 {[%clk 0:00:19.2]} 84.
b6 {[%clk 0:00:03.5]} 84... h2 {[%clk 0:00:20.1]} 85. Kc6 {[%clk 0:00:04]} 85...
h1=Q+ {[%clk 0:00:21]} 86. Kb5 {[%clk 0:00:03.2]} 86... Qc1 {[%clk 0:00:21]} 87.
Ka6 {[%clk 0:00:03.7]} 87... Qb1 {[%clk 0:00:19.9]} 88. b7 {[%clk 0:00:03.9]}
88... Q1xb7+ {[%clk 0:00:20.2]} 89. Ka5 {[%clk 0:00:04]} 89... Qb5# {[%clk
0:00:20.9]} 0-1

[Event "Late-Titled-Tuesday-Blitz-November-28-2023"]
[Site "Chess.com"]
[Date "2023.11.28"]
[Round "2"]
[White "Alexei_Gubajdullin"]
[Black "nicolochessit"]
[Result "1-0"]
[WhiteElo "2659"]
[BlackElo "2349"]
[TimeControl "180+1"]
[EndTime "14:11:19 PST"]
[Termination "Alexei_Gubajdullin won by resignation"]

1. d4 {[%clk 0:03:00]} 1... d5 {[%clk 0:02:58.9]} 2. Nf3 {[%clk 0:03:00]} 2...
c6 {[%clk 0:02:55.9]} 3. Bf4 {[%clk 0:03:00.1]} 3... Nf6 {[%clk 0:02:54]} 4.
Nbd2 {[%clk 0:03:00.1]} 4... e6 {[%clk 0:02:53.6]} 5. e3 {[%clk 0:03:00.4]} 5...
Bd6 {[%clk 0:02:53.7]} 6. Bxd6 {[%clk 0:02:59.6]} 6... Qxd6 {[%clk 0:02:54.6]}
7. c4 {[%clk 0:03:00.1]} 7... Nbd7 {[%clk 0:02:52.6]} 8. Qb3 {[%clk 0:03:01]}
8... O-O {[%clk 0:02:52]} 9. Qa3 {[%clk 0:02:57.8]} 9... Qxa3 {[%clk 0:02:46.3]}
10. bxa3 {[%clk 0:02:57.9]} 10... Nb6 {[%clk 0:02:47.2]} 11. Rb1 {[%clk
0:02:56.8]} 11... Bd7 {[%clk 0:02:33.8]} 12. Ne5 {[%clk 0:02:50.4]} 12... Rab8
{[%clk 0:02:30]} 13. g4 {[%clk 0:02:45.1]} 13... Nxc4 {[%clk 0:02:26.3]} 14.
Ndxc4 {[%clk 0:02:44.8]} 14... dxc4 {[%clk 0:02:24]} 15. g5 {[%clk 0:02:45]} 1-0

[Event "Late-Titled-Tuesday-Blitz-November-28-2023"]
[Site "Chess.com"]
[Date "2023.11.28"]
[Round "2"]
[White "miraitrunks"]
[Black "Kostukov_Alex"]
[Result "1-0"]
[WhiteElo "2047"]
[BlackElo "2382"]
[TimeControl "180+1"]
[EndTime "14:11:57 PST"]
[Termination "miraitrunks won by resignation"]

1. e4 {[%clk 0:02:59.9]} 1... c5 {[%clk 0:02:59.6]} 2. Nc3 {[%clk 0:02:59.2]}
2... g6 {[%clk 0:03:00.2]} 3. Nge2 {[%clk 0:02:59]} 3... Bg7 {[%clk 0:03:00.5]}
4. d3 {[%clk 0:02:59.4]} 4... Nc6 {[%clk 0:02:59.9]} 5. g3 {[%clk 0:03:00]} 5...
e5 {[%clk 0:02:56.8]} 6. Bg2 {[%clk 0:03:00]} 6... Nge7 {[%clk 0:02:57.3]} 7.
O-O {[%clk 0:03:00.1]} 7... O-O {[%clk 0:02:58]} 8. Be3 {[%clk 0:03:00.3]} 8...
Nd4 {[%clk 0:02:57.9]} 9. f4 {[%clk 0:02:57.8]} 9... d6 {[%clk 0:02:57.3]} 10.
Qd2 {[%clk 0:02:54.3]} 10... Be6 {[%clk 0:02:53.2]} 11. Nd1 {[%clk 0:02:53.6]}
11... Qd7 {[%clk 0:02:51.7]} 12. c3 {[%clk 0:02:52.9]} 12... Nxe2+ {[%clk
0:02:51.5]} 13. Qxe2 {[%clk 0:02:52.7]} 13... b6 {[%clk 0:02:40]} 14. f5 {[%clk
0:02:51.1]} 14... gxf5 {[%clk 0:02:37.2]} 15. exf5 {[%clk 0:02:52]} 15... Bxf5
{[%clk 0:02:28.9]} 16. Bxa8 {[%clk 0:02:51.6]} 16... Rxa8 {[%clk 0:02:29.8]} 17.
Bg5 {[%clk 0:02:45.9]} 17... Ng6 {[%clk 0:02:18.2]} 18. Qf3 {[%clk 0:02:44.3]}
1-0

[Event "Late-Titled-Tuesday-Blitz-November-28-2023"]
[Site "Chess.com"]
[Date "2023.11.28"]
[Round "2"]
[White "rdarruda"]
[Black "A-Fier"]
[Result "0-1"]
[WhiteElo "2518"]
[BlackElo "2744"]
[TimeControl "180+1"]
[EndTime "14:13:01 PST"]
[Termination "A-Fier won by resignation"]

1. Nf3 {[%clk 0:02:56.2]} 1... Nf6 {[%clk 0:02:59.2]} 2. d4 {[%clk 0:02:55.2]}
2... g6 {[%clk 0:03:00.1]} 3. Nc3 {[%clk 0:02:54.5]} 3... Bg7 {[%clk 0:03:01]}
4. e4 {[%clk 0:02:54.4]} 4... O-O {[%clk 0:03:00.3]} 5. Bg5 {[%clk 0:02:54.1]}
5... d6 {[%clk 0:02:59.8]} 6. Qd2 {[%clk 0:02:54]} 6... c6 {[%clk 0:02:55]} 7.
O-O-O {[%clk 0:02:53.4]} 7... b5 {[%clk 0:02:54.5]} 8. Bd3 {[%clk 0:02:52.5]}
8... b4 {[%clk 0:02:54.3]} 9. Ne2 {[%clk 0:02:51.7]} 9... Qa5 {[%clk 0:02:54.2]}
10. Kb1 {[%clk 0:02:49.6]} 10... Nbd7 {[%clk 0:02:54.5]} 11. Bh6 {[%clk
0:02:44.8]} 11... Nb6 {[%clk 0:02:51.8]} 12. Bxg7 {[%clk 0:02:41.1]} 12... Kxg7
{[%clk 0:02:51]} 13. h4 {[%clk 0:02:41.6]} 13... h5 {[%clk 0:02:50.7]} 14. Ng3
{[%clk 0:02:36]} 14... Bg4 {[%clk 0:02:47]} 15. e5 {[%clk 0:02:31.9]} 15... Nfd5
{[%clk 0:02:46.7]} 16. exd6 {[%clk 0:02:12.4]} 16... Nc3+ {[%clk 0:02:38.1]} 17.
bxc3 {[%clk 0:02:13.3]} 17... bxc3 {[%clk 0:02:37.9]} 18. Qc1 {[%clk 0:02:13.8]}
18... Nd5 {[%clk 0:02:36.3]} 19. Ka1 {[%clk 0:02:10.1]} 19... Rab8 {[%clk
0:02:34]} 20. Bc4 {[%clk 0:02:08.8]} 20... Rb2 {[%clk 0:02:31.9]} 21. Ne5 {[%clk
0:01:47.8]} 21... Nb4 {[%clk 0:02:25.9]} 0-1

[Event "Late-Titled-Tuesday-Blitz-November-28-2023"]
[Site "Chess.com"]
[Date "2023.11.28"]
[Round "2"]
[White "JSPrepz"]
[Black "zajka-molotok"]
[Result "1-0"]
[WhiteElo "2846"]
[BlackElo "2531"]
[TimeControl "180+1"]
[EndTime "14:13:16 PST"]
[Termination "JSPrepz won by resignation"]

1. e4 {[%clk 0:03:00.9]} 1... c5 {[%clk 0:02:57.4]} 2. Nf3 {[%clk 0:03:01.3]}
2... Nc6 {[%clk 0:02:56.6]} 3. Nc3 {[%clk 0:03:01.7]} 3... e5 {[%clk 0:02:55.4]}
4. Bc4 {[%clk 0:03:02.4]} 4... d6 {[%clk 0:02:52.6]} 5. d3 {[%clk 0:03:03]} 5...
Be7 {[%clk 0:02:50.1]} 6. h4 {[%clk 0:03:03.4]} 6... Bg4 {[%clk 0:02:46.7]} 7.
Nd5 {[%clk 0:03:03]} 7... Nf6 {[%clk 0:02:35.7]} 8. c3 {[%clk 0:03:03.1]} 8...
a6 {[%clk 0:02:29.5]} 9. Ne3 {[%clk 0:03:03.4]} 9... b5 {[%clk 0:02:24.7]} 10.
Nxg4 {[%clk 0:03:02.3]} 10... Nxg4 {[%clk 0:02:24.3]} 11. Bd5 {[%clk 0:03:02.8]}
11... Rc8 {[%clk 0:02:20.9]} 12. Ng5 {[%clk 0:03:03.1]} 12... Nh6 {[%clk
0:02:11.2]} 13. Qh5 {[%clk 0:03:03.3]} 13... O-O {[%clk 0:02:00.8]} 14. Rh3
{[%clk 0:03:03.5]} 14... Kh8 {[%clk 0:01:50.8]} 15. Rg3 {[%clk 0:03:02.2]} 15...
Bf6 {[%clk 0:01:36.9]} 16. Be3 {[%clk 0:02:24.1]} 16... Qe8 {[%clk 0:01:25.9]}
17. Nxh7 {[%clk 0:01:58.7]} 17... Kxh7 {[%clk 0:01:23.8]} 18. Bxh6 {[%clk
0:01:58.9]} 18... gxh6 {[%clk 0:01:19.3]} 19. Qf5+ {[%clk 0:01:58.7]} 1-0

[Event "Late-Titled-Tuesday-Blitz-November-28-2023"]
[Site "Chess.com"]
[Date "2023.11.28"]
[Round "2"]
[White "Redzishchess"]
[Black "Suspenser17"]
[Result "0-1"]
[WhiteElo "2510"]
[BlackElo "2343"]
[TimeControl "180+1"]
[EndTime "14:13:52 PST"]
[Termination "Suspenser17 won by resignation"]

1. d4 {[%clk 0:02:52.9]} 1... d5 {[%clk 0:02:59.1]} 2. c4 {[%clk 0:02:51.9]}
2... c6 {[%clk 0:02:59.4]} 3. cxd5 {[%clk 0:02:49.8]} 3... cxd5 {[%clk
0:02:58.5]} 4. Nc3 {[%clk 0:02:50.2]} 4... Nf6 {[%clk 0:02:58.2]} 5. Bf4 {[%clk
0:02:50.8]} 5... Nc6 {[%clk 0:02:58.5]} 6. Nf3 {[%clk 0:02:45.6]} 6... a6 {[%clk
0:02:55]} 7. e3 {[%clk 0:02:44.2]} 7... Bg4 {[%clk 0:02:54.3]} 8. Be2 {[%clk
0:02:42.6]} 8... Bxf3 {[%clk 0:02:47.6]} 9. Bxf3 {[%clk 0:02:43.5]} 9... e6
{[%clk 0:02:48]} 10. O-O {[%clk 0:02:42.7]} 10... Bd6 {[%clk 0:02:48]} 11. Bxd6
{[%clk 0:02:33.5]} 11... Qxd6 {[%clk 0:02:48.9]} 12. Rc1 {[%clk 0:02:32.7]}
12... O-O {[%clk 0:02:48.7]} 13. Na4 {[%clk 0:02:32.3]} 13... Rac8 {[%clk
0:02:47]} 14. Nc5 {[%clk 0:02:29.8]} 14... Rc7 {[%clk 0:02:47.3]} 15. Qb3 {[%clk
0:02:28.4]} 15... Qe7 {[%clk 0:02:46.2]} 16. Qb6 {[%clk 0:02:23.5]} 16... Rfc8
{[%clk 0:02:22.5]} 17. Rc3 {[%clk 0:02:01.9]} 17... e5 {[%clk 0:02:22]} 18. dxe5
{[%clk 0:01:22.3]} 18... Nxe5 {[%clk 0:02:19.9]} 19. Rfc1 {[%clk 0:01:21.1]}
19... Nxf3+ {[%clk 0:02:16.3]} 20. gxf3 {[%clk 0:01:22]} 20... d4 {[%clk
0:02:13.5]} 21. exd4 {[%clk 0:01:19.4]} 21... Nd5 {[%clk 0:02:13.2]} 22. Qb3
{[%clk 0:01:04]} 22... Nxc3 {[%clk 0:01:48.8]} 23. bxc3 {[%clk 0:01:04.9]} 23...
Qg5+ {[%clk 0:01:44.7]} 24. Kf1 {[%clk 0:01:03.2]} 24... Qxc1+ {[%clk
0:01:45.3]} 0-1

[Event "Late-Titled-Tuesday-Blitz-November-28-2023"]
[Site "Chess.com"]
[Date "2023.11.28"]
[Round "2"]
[White "MKlose11"]
[Black "Oleksandr_Bortnyk"]
[Result "0-1"]
[WhiteElo "2613"]
[BlackElo "3046"]
[TimeControl "180+1"]
[EndTime "14:14:06 PST"]
[Termination "Oleksandr_Bortnyk won by resignation"]

1. e4 {[%clk 0:03:00.9]} 1... Nf6 {[%clk 0:02:58.8]} 2. e5 {[%clk 0:03:00.8]}
2... Nd5 {[%clk 0:02:58.8]} 3. Nc3 {[%clk 0:03:01.7]} 3... Nxc3 {[%clk
0:02:57.2]} 4. dxc3 {[%clk 0:03:02.6]} 4... d6 {[%clk 0:02:57.9]} 5. Bf4 {[%clk
0:03:01.2]} 5... Nc6 {[%clk 0:02:57.9]} 6. Nf3 {[%clk 0:03:01.5]} 6... dxe5
{[%clk 0:02:58.3]} 7. Qxd8+ {[%clk 0:02:47]} 7... Nxd8 {[%clk 0:02:59.2]} 8.
Bxe5 {[%clk 0:02:41.3]} 8... c6 {[%clk 0:02:58.8]} 9. O-O-O {[%clk 0:02:40.8]}
9... f6 {[%clk 0:02:58.6]} 10. Bg3 {[%clk 0:02:35.5]} 10... e5 {[%clk
0:02:56.4]} 11. Nd2 {[%clk 0:02:31.2]} 11... Ne6 {[%clk 0:02:45.1]} 12. Bc4
{[%clk 0:02:28.7]} 12... b5 {[%clk 0:02:39.9]} 13. Bb3 {[%clk 0:02:28.5]} 13...
a5 {[%clk 0:02:38.9]} 14. a4 {[%clk 0:02:24.4]} 14... Nc5 {[%clk 0:02:37.8]} 15.
axb5 {[%clk 0:02:08.7]} 15... Nxb3+ {[%clk 0:02:32.9]} 16. cxb3 {[%clk
0:01:59.8]} 16... cxb5 {[%clk 0:02:31.9]} 17. Ne4 {[%clk 0:01:56.6]} 17... Be6
{[%clk 0:02:28.6]} 18. Kc2 {[%clk 0:01:42.7]} 18... a4 {[%clk 0:02:23.3]} 19.
bxa4 {[%clk 0:01:41.5]} 19... bxa4 {[%clk 0:02:23.6]} 20. Kb1 {[%clk 0:01:36.3]}
20... Bb3 {[%clk 0:02:05]} 21. Rd2 {[%clk 0:01:31.4]} 21... Be7 {[%clk
0:02:02.6]} 22. Nd6+ {[%clk 0:01:28.6]} 22... Bxd6 {[%clk 0:01:56.2]} 23. Rxd6
{[%clk 0:01:28]} 23... Ke7 {[%clk 0:01:57.1]} 24. Rb6 {[%clk 0:01:08.3]} 24...
Rhd8 {[%clk 0:01:55.8]} 25. Rb7+ {[%clk 0:01:06.1]} 25... Ke6 {[%clk 0:01:55.9]}
26. Rxg7 {[%clk 0:01:02.1]} 26... Rd2 {[%clk 0:01:54.1]} 27. Rb7 {[%clk
0:01:01.8]} 27... Rad8 {[%clk 0:01:50.3]} 28. Rb6+ {[%clk 0:00:57.4]} 28... Kf5
{[%clk 0:01:49.8]} 29. Rxb3 {[%clk 0:00:54.4]} 29... axb3 {[%clk 0:01:48.9]} 30.
Kc1 {[%clk 0:00:55.3]} 30... Rc2+ {[%clk 0:01:48.2]} 0-1